[Event "*** Titled Tuesday Blitz"]
[Site "Chess.com"]
[Date "2020.12.01"]
[Round "1"]
[White "Chuchofrio1"]
[Black "ferdipy"]
[Result "1-0"]
[WhiteElo "2495"]
[BlackElo "2129"]
[TimeControl "180+1"]
[EndTime "10:05:04 PST"]
[Termination "Chuchofrio1 won by resignation"]

1. e4 {[%clk 0:02:58.5]} 1... e6 {[%clk 0:02:57.5]} 2. d4 {[%clk 0:02:58.3]}
2... d5 {[%clk 0:02:56.8]} 3. Nc3 {[%clk 0:02:58.8]} 3... Bb4 {[%clk 0:02:54.2]}
4. a3 {[%clk 0:02:58.6]} 4... Bxc3+ {[%clk 0:02:52.2]} 5. bxc3 {[%clk
0:02:59.5]} 5... dxe4 {[%clk 0:02:53]} 6. Qg4 {[%clk 0:02:59.5]} 6... Nf6 {[%clk
0:02:51.1]} 7. Qxg7 {[%clk 0:02:59.9]} 7... Rg8 {[%clk 0:02:52]} 8. Qh6 {[%clk
0:03:00.1]} 8... Rg6 {[%clk 0:02:52.5]} 9. Qh4 {[%clk 0:02:59.8]} 9... c6 {[%clk
0:02:52.1]} 10. Bg5 {[%clk 0:02:59.7]} 10... Nbd7 {[%clk 0:02:52.7]} 11. Ne2
{[%clk 0:02:59.4]} 11... Qa5 {[%clk 0:02:49.8]} 12. Bd2 {[%clk 0:02:52.9]} 12...
c5 {[%clk 0:02:49.3]} 13. dxc5 {[%clk 0:02:50.8]} 13... Nxc5 {[%clk 0:02:45.8]}
14. Nf4 {[%clk 0:02:48.8]} 14... e3 {[%clk 0:02:12]} 15. fxe3 {[%clk 0:02:31.9]}
15... Nce4 {[%clk 0:02:07]} 16. Nxg6 {[%clk 0:02:29.1]} 16... hxg6 {[%clk
0:02:07.9]} 17. Bd3 {[%clk 0:02:18.5]} 17... Bd7 {[%clk 0:01:49.8]} 18. Bxe4
{[%clk 0:02:09]} 18... Nxe4 {[%clk 0:01:48.1]} 19. Qxe4 {[%clk 0:02:06.4]} 19...
Bc6 {[%clk 0:01:49]} 20. Qd4 {[%clk 0:02:02.9]} 20... Rd8 {[%clk 0:01:45.1]} 21.
Qh8+ {[%clk 0:01:58.3]} 21... Kd7 {[%clk 0:01:44.8]} 22. Qf6 {[%clk 0:01:49.1]}
22... Kc8 {[%clk 0:01:42.1]} 23. Rd1 {[%clk 0:01:39]} 23... Bxg2 {[%clk
0:01:39.1]} 24. Rg1 {[%clk 0:01:33.6]} 24... Be4 {[%clk 0:01:39.4]} 25. Qg5
{[%clk 0:00:58.1]} 25... Qxa3 {[%clk 0:01:22.1]} 26. Qxd8+ {[%clk 0:00:56.2]}
1-0

[Event "*** Titled Tuesday Blitz"]
[Site "Chess.com"]
[Date "2020.12.01"]
[Round "1"]
[White "AsselLesbekova"]
[Black "Pelopidass"]
[Result "1-0"]
[WhiteElo "2289"]
[BlackElo "2552"]
[TimeControl "180+1"]
[EndTime "10:05:08 PST"]
[Termination "AsselLesbekova won by resignation"]

1. e4 {[%clk 0:03:00]} 1... c5 {[%clk 0:02:59.7]} 2. Nf3 {[%clk 0:02:59.8]} 2...
d6 {[%clk 0:03:00.2]} 3. Bb5+ {[%clk 0:02:59.3]} 3... Bd7 {[%clk 0:02:59.7]} 4.
Bxd7+ {[%clk 0:02:59.4]} 4... Qxd7 {[%clk 0:03:00.6]} 5. O-O {[%clk 0:03:00.3]}
5... Nc6 {[%clk 0:03:00.4]} 6. Re1 {[%clk 0:03:01]} 6... Nf6 {[%clk 0:03:00.1]}
7. c3 {[%clk 0:03:01.3]} 7... e6 {[%clk 0:03:00.1]} 8. d4 {[%clk 0:03:01.6]}
8... cxd4 {[%clk 0:03:01]} 9. cxd4 {[%clk 0:03:01.7]} 9... d5 {[%clk 0:03:01.7]}
10. e5 {[%clk 0:03:01.3]} 10... Ne4 {[%clk 0:03:02.1]} 11. Nbd2 {[%clk
0:03:00.6]} 11... Nxd2 {[%clk 0:03:00.6]} 12. Bxd2 {[%clk 0:03:01.5]} 12... Be7
{[%clk 0:03:00.5]} 13. Rc1 {[%clk 0:03:01.4]} 13... Rc8 {[%clk 0:03:00.5]} 14.
a3 {[%clk 0:03:01.3]} 14... Bd8 {[%clk 0:03:00.1]} 15. b4 {[%clk 0:03:01.3]}
15... Bb6 {[%clk 0:03:00.5]} 16. Be3 {[%clk 0:02:57.5]} 16... Ne7 {[%clk
0:02:56.6]} 17. Rxc8+ {[%clk 0:02:54.2]} 17... Qxc8 {[%clk 0:02:56.5]} 18. Qa4+
{[%clk 0:02:54.5]} 18... Qd7 {[%clk 0:02:55.2]} 19. Qxd7+ {[%clk 0:02:50.4]}
19... Kxd7 {[%clk 0:02:56.1]} 20. Rc1 {[%clk 0:02:51.1]} 20... h6 {[%clk
0:02:55.6]} 21. Kf1 {[%clk 0:02:44.6]} 21... Rc8 {[%clk 0:02:40.4]} 22. Rxc8
{[%clk 0:02:43.1]} 22... Nxc8 {[%clk 0:02:41.3]} 23. Nd2 {[%clk 0:02:40.7]}
23... Bd8 {[%clk 0:02:29.1]} 24. Nb3 {[%clk 0:02:38.7]} 24... Nb6 {[%clk
0:02:24.9]} 25. Nd2 {[%clk 0:02:37.2]} 25... Kc6 {[%clk 0:02:19.9]} 26. Nb3
{[%clk 0:02:20.8]} 26... Be7 {[%clk 0:02:08.9]} 27. Na5+ {[%clk 0:02:19.1]}
27... Kc7 {[%clk 0:02:08.7]} 28. Ke2 {[%clk 0:02:18.3]} 28... Nc4 {[%clk
0:02:00.9]} 29. Nxc4 {[%clk 0:02:06.8]} 29... dxc4 {[%clk 0:02:01.8]} 30. Kd2
{[%clk 0:02:03.6]} 30... Kc6 {[%clk 0:02:00.7]} 31. Kc3 {[%clk 0:02:02.6]} 31...
b5 {[%clk 0:01:59.2]} 32. Kd2 {[%clk 0:01:51.5]} 32... a5 {[%clk 0:01:52.8]} 33.
Kc3 {[%clk 0:01:48.7]} 33... axb4+ {[%clk 0:01:51.9]} 34. axb4 {[%clk
0:01:49.6]} 34... Kd5 {[%clk 0:01:52.2]} 35. f3 {[%clk 0:01:49.4]} 35... Bf6
{[%clk 0:01:41.3]} 36. exf6 {[%clk 0:01:48.8]} 36... g5 {[%clk 0:01:37.7]} 37.
h4 {[%clk 0:01:44.2]} 37... gxh4 {[%clk 0:01:34.6]} 38. Bxh6 {[%clk 0:01:43.9]}
38... e5 {[%clk 0:01:35.2]} 39. dxe5 {[%clk 0:01:40.8]} 39... Kxe5 {[%clk
0:01:36.1]} 40. Bg5 {[%clk 0:01:41.2]} 40... Kf5 {[%clk 0:01:35.6]} 41. Bxh4
{[%clk 0:01:40.9]} 41... Kf4 {[%clk 0:01:36.4]} 42. g4 {[%clk 0:01:39.8]} 42...
Ke5 {[%clk 0:01:28.4]} 43. Bg3+ {[%clk 0:01:36.2]} 43... Kxf6 {[%clk 0:01:28.2]}
44. f4 {[%clk 0:01:36.1]} 44... Ke6 {[%clk 0:01:28.2]} 45. Kd4 {[%clk
0:01:36.4]} 1-0

[Event "*** Titled Tuesday Blitz"]
[Site "Chess.com"]
[Date "2020.12.01"]
[Round "1"]
[White "Onischuk_V"]
[Black "guillembaches"]
[Result "1-0"]
[WhiteElo "2847"]
[BlackElo "2418"]
[TimeControl "180+1"]
[EndTime "10:05:12 PST"]
[Termination "Onischuk_V won by resignation"]

1. e4 {[%clk 0:02:59.8]} 1... c5 {[%clk 0:02:59.5]} 2. Nc3 {[%clk 0:02:58.5]}
2... a6 {[%clk 0:02:57.2]} 3. Nge2 {[%clk 0:02:57.6]} 3... d6 {[%clk 0:02:56.7]}
4. g3 {[%clk 0:02:57.2]} 4... Nc6 {[%clk 0:02:54.6]} 5. Bg2 {[%clk 0:02:56.9]}
5... g6 {[%clk 0:02:54.1]} 6. d4 {[%clk 0:02:56.4]} 6... cxd4 {[%clk 0:02:54.2]}
7. Nxd4 {[%clk 0:02:56.7]} 7... Bd7 {[%clk 0:02:52.3]} 8. O-O {[%clk 0:02:52.3]}
8... Bg7 {[%clk 0:02:52.4]} 9. Nb3 {[%clk 0:02:52.2]} 9... Nf6 {[%clk
0:02:52.5]} 10. h3 {[%clk 0:02:50.3]} 10... O-O {[%clk 0:02:52.3]} 11. Re1
{[%clk 0:02:49.7]} 11... b5 {[%clk 0:02:49.8]} 12. a4 {[%clk 0:02:41.5]} 12...
Rb8 {[%clk 0:02:48.1]} 13. axb5 {[%clk 0:02:40.1]} 13... axb5 {[%clk 0:02:48.1]}
14. Nd5 {[%clk 0:02:40.7]} 14... Ne8 {[%clk 0:02:25.9]} 15. c3 {[%clk
0:02:29.5]} 15... Ne5 {[%clk 0:02:09.1]} 16. Bg5 {[%clk 0:02:01.2]} 16... f6
{[%clk 0:01:54.8]} 17. Bc1 {[%clk 0:02:00.3]} 17... e6 {[%clk 0:01:53.7]} 18.
Nb4 {[%clk 0:01:59.5]} 18... Rc8 {[%clk 0:01:28.1]} 19. Nd4 {[%clk 0:01:50.1]}
19... Nc4 {[%clk 0:01:07.5]} 20. b3 {[%clk 0:01:48.6]} 20... Ne5 {[%clk
0:01:04.9]} 21. f4 {[%clk 0:01:43.1]} 21... Nc6 {[%clk 0:01:04]} 22. Nbxc6
{[%clk 0:01:42.1]} 22... Bxc6 {[%clk 0:01:04.2]} 23. Nxe6 {[%clk 0:01:42]} 23...
Qe7 {[%clk 0:01:01.6]} 24. Nxf8 {[%clk 0:01:41.4]} 24... Bxf8 {[%clk 0:01:02.5]}
25. Be3 {[%clk 0:01:38.5]} 25... Bxe4 {[%clk 0:00:59.6]} 26. Bf2 {[%clk
0:01:36.8]} 26... f5 {[%clk 0:00:48.1]} 27. Bxe4 {[%clk 0:01:30.5]} 27... fxe4
{[%clk 0:00:49]} 28. Qd5+ {[%clk 0:01:30.1]} 28... Kg7 {[%clk 0:00:49.3]} 29.
Rxe4 {[%clk 0:01:24.8]} 29... Qc7 {[%clk 0:00:47.6]} 30. Ra7 {[%clk 0:01:23.9]}
1-0

[Event "*** Titled Tuesday Blitz"]
[Site "Chess.com"]
[Date "2020.12.01"]
[Round "1"]
[White "zverr1"]
[Black "Synctel"]
[Result "1-0"]
[WhiteElo "2472"]
[BlackElo "2004"]
[TimeControl "180+1"]
[EndTime "10:05:14 PST"]
[Termination "zverr1 won by resignation"]

1. d4 {[%clk 0:03:00.9]} 1... Nf6 {[%clk 0:02:59.6]} 2. c4 {[%clk 0:02:56.8]}
2... e6 {[%clk 0:02:59.6]} 3. Nc3 {[%clk 0:02:55.4]} 3... Bb4 {[%clk 0:02:59.3]}
4. e3 {[%clk 0:02:49]} 4... Bxc3+ {[%clk 0:02:48.4]} 5. bxc3 {[%clk 0:02:40.8]}
5... O-O {[%clk 0:02:48.4]} 6. Bd3 {[%clk 0:02:37.4]} 6... d6 {[%clk 0:02:48.2]}
7. f4 {[%clk 0:02:35.3]} 7... e5 {[%clk 0:02:41.6]} 8. Qc2 {[%clk 0:02:27.3]}
8... exf4 {[%clk 0:02:28.1]} 9. exf4 {[%clk 0:02:28.2]} 9... Re8+ {[%clk
0:02:27.7]} 10. Ne2 {[%clk 0:02:24.8]} 10... Nbd7 {[%clk 0:02:08.6]} 11. O-O
{[%clk 0:02:15.3]} 11... Nf8 {[%clk 0:02:08.4]} 12. f5 {[%clk 0:02:12]} 12... d5
{[%clk 0:01:29.2]} 13. Bg5 {[%clk 0:01:58.6]} 13... c6 {[%clk 0:01:12.9]} 14.
Ng3 {[%clk 0:01:49]} 14... Qd6 {[%clk 0:00:59.8]} 15. c5 {[%clk 0:01:45.3]}
15... Qd8 {[%clk 0:00:42.9]} 16. Rae1 {[%clk 0:01:40.5]} 16... Bd7 {[%clk
0:00:38.2]} 17. Nh5 {[%clk 0:01:37.8]} 17... h6 {[%clk 0:00:35.7]} 18. Bxf6
{[%clk 0:01:30.4]} 18... gxf6 {[%clk 0:00:35.4]} 19. Qd1 {[%clk 0:01:21]} 1-0

[Event "*** Titled Tuesday Blitz"]
[Site "Chess.com"]
[Date "2020.12.01"]
[Round "1"]
[White "DanilNajdin"]
[Black "anon219"]
[Result "0-1"]
[WhiteElo "2389"]
[BlackElo "2774"]
[TimeControl "180+1"]
[EndTime "10:05:18 PST"]
[Termination "anon219 won by checkmate"]

1. d4 {[%clk 0:02:55]} 1... d5 {[%clk 0:02:49.9]} 2. Nf3 {[%clk 0:02:51.6]} 2...
Nf6 {[%clk 0:02:49.6]} 3. e3 {[%clk 0:02:49.1]} 3... c5 {[%clk 0:02:49.3]} 4.
Bd3 {[%clk 0:02:46.2]} 4... Nc6 {[%clk 0:02:47.7]} 5. b3 {[%clk 0:02:43.9]} 5...
cxd4 {[%clk 0:02:47.3]} 6. exd4 {[%clk 0:02:43.2]} 6... Bg4 {[%clk 0:02:45.4]}
7. Nbd2 {[%clk 0:02:39.1]} 7... Nxd4 {[%clk 0:02:40.4]} 8. Bb2 {[%clk
0:02:34.1]} 8... Nxf3+ {[%clk 0:02:37.6]} 9. Nxf3 {[%clk 0:02:33.9]} 9... Qa5+
{[%clk 0:02:32.4]} 10. Kf1 {[%clk 0:02:21.5]} 10... e6 {[%clk 0:02:30.1]} 11. h3
{[%clk 0:02:09.8]} 11... Bh5 {[%clk 0:02:27.4]} 12. g4 {[%clk 0:02:09.7]} 12...
Bg6 {[%clk 0:02:27.2]} 13. Bxg6 {[%clk 0:02:10.2]} 13... hxg6 {[%clk 0:02:28.1]}
14. Ne5 {[%clk 0:01:45.1]} 14... Bd6 {[%clk 0:02:08.9]} 15. Kg2 {[%clk
0:01:31.2]} 15... Qc7 {[%clk 0:02:04.4]} 16. Re1 {[%clk 0:01:26.5]} 16... Ne4
{[%clk 0:02:03.6]} 17. Nf3 {[%clk 0:01:12.7]} 17... Rxh3 {[%clk 0:01:59.9]} 18.
Rxe4 {[%clk 0:00:53.9]} 18... dxe4 {[%clk 0:01:54.9]} 19. Kxh3 {[%clk
0:00:51.7]} 19... exf3 {[%clk 0:01:53.9]} 20. Qxf3 {[%clk 0:00:51]} 20... O-O-O
{[%clk 0:01:46.3]} 21. Kg2 {[%clk 0:00:34.9]} 21... Rh8 {[%clk 0:01:38.2]} 22.
Bxg7 {[%clk 0:00:34.3]} 22... Rh2+ {[%clk 0:01:29.6]} 23. Kg1 {[%clk 0:00:34.2]}
23... Bc5 {[%clk 0:01:26.1]} 24. Rf1 {[%clk 0:00:32.3]} 24... Rh4 {[%clk
0:01:22.4]} 25. Bf6 {[%clk 0:00:29.8]} 25... Qh2# {[%clk 0:01:21.3]} 0-1

[Event "*** Titled Tuesday Blitz"]
[Site "Chess.com"]
[Date "2020.12.01"]
[Round "1"]
[White "Twannibal"]
[Black "gochatoria98"]
[Result "1-0"]
[WhiteElo "2473"]
[BlackElo "1962"]
[TimeControl "180+1"]
[EndTime "10:05:18 PST"]
[Termination "Twannibal won on time"]

1. e4 {[%clk 0:02:57.1]} 1... c5 {[%clk 0:02:59.5]} 2. Nf3 {[%clk 0:02:55.7]}
2... e6 {[%clk 0:02:59.3]} 3. d4 {[%clk 0:02:55]} 3... cxd4 {[%clk 0:02:59.5]}
4. Nxd4 {[%clk 0:02:55.9]} 4... a6 {[%clk 0:02:59.4]} 5. c4 {[%clk 0:02:55.9]}
5... Nf6 {[%clk 0:02:52.9]} 6. Nc3 {[%clk 0:02:55.8]} 6... Bb4 {[%clk
0:02:53.4]} 7. Qd3 {[%clk 0:02:55.7]} 7... d6 {[%clk 0:02:36.9]} 8. Nc2 {[%clk
0:02:53.1]} 8... Bxc3+ {[%clk 0:02:35.3]} 9. Qxc3 {[%clk 0:02:54]} 9... Nc6
{[%clk 0:02:35]} 10. Bd3 {[%clk 0:02:50.7]} 10... e5 {[%clk 0:02:30.5]} 11. O-O
{[%clk 0:02:49.1]} 11... O-O {[%clk 0:02:30.4]} 12. f4 {[%clk 0:02:48.6]} 12...
Ng4 {[%clk 0:01:49.4]} 13. h3 {[%clk 0:02:25.2]} 13... Nf6 {[%clk 0:01:22.5]}
14. Kh2 {[%clk 0:02:18.2]} 14... h6 {[%clk 0:01:21]} 15. f5 {[%clk 0:02:11.7]}
15... Bd7 {[%clk 0:01:21.1]} 16. Be3 {[%clk 0:02:09.9]} 16... Rc8 {[%clk
0:01:20.8]} 17. Qd2 {[%clk 0:02:10]} 17... b5 {[%clk 0:01:17]} 18. cxb5 {[%clk
0:02:01.4]} 18... axb5 {[%clk 0:01:17.3]} 19. Rf3 {[%clk 0:01:52.3]} 19... Ne7
{[%clk 0:00:59.3]} 20. Bxh6 {[%clk 0:01:44.5]} 20... gxh6 {[%clk 0:00:24.5]} 21.
Qxh6 {[%clk 0:01:43.7]} 21... Ng4+ {[%clk 0:00:17.7]} 22. hxg4 {[%clk
0:01:42.9]} 1-0

[Event "*** Titled Tuesday Blitz"]
[Site "Chess.com"]
[Date "2020.12.01"]
[Round "1"]
[White "Konavets"]
[Black "BigAl"]
[Result "1-0"]
[WhiteElo "3011"]
[BlackElo "2455"]
[TimeControl "180+1"]
[EndTime "10:05:23 PST"]
[Termination "Konavets won by resignation"]

1. d4 {[%clk 0:03:00.9]} 1... Nf6 {[%clk 0:02:59.4]} 2. Bg5 {[%clk 0:02:58.8]}
2... Ne4 {[%clk 0:02:57.3]} 3. Bh4 {[%clk 0:02:58.6]} 3... d5 {[%clk 0:02:56.4]}
4. Nf3 {[%clk 0:02:55.1]} 4... Nd7 {[%clk 0:02:53.3]} 5. Nbd2 {[%clk 0:02:55]}
5... Nxd2 {[%clk 0:02:51.5]} 6. Nxd2 {[%clk 0:02:52.3]} 6... c5 {[%clk
0:02:40.2]} 7. e4 {[%clk 0:02:51.4]} 7... dxe4 {[%clk 0:02:31.7]} 8. Nxe4 {[%clk
0:02:51.2]} 8... Qa5+ {[%clk 0:02:31.3]} 9. c3 {[%clk 0:02:50.1]} 9... Qb6
{[%clk 0:02:17.5]} 10. Bc4 {[%clk 0:02:46.5]} 10... e6 {[%clk 0:02:13.6]} 11.
O-O {[%clk 0:02:45]} 11... cxd4 {[%clk 0:02:13.5]} 12. cxd4 {[%clk 0:02:44.5]}
12... Bd6 {[%clk 0:01:51.1]} 13. d5 {[%clk 0:01:44.3]} 13... e5 {[%clk
0:01:50.8]} 14. Qb3 {[%clk 0:01:44]} 14... Be7 {[%clk 0:01:30.2]} 15. Bxe7
{[%clk 0:01:42.4]} 15... Qxb3 {[%clk 0:01:29.7]} 16. Bxb3 {[%clk 0:01:43]} 16...
Kxe7 {[%clk 0:01:30]} 17. d6+ {[%clk 0:01:43.9]} 17... Ke8 {[%clk 0:01:27.7]}
18. Rac1 {[%clk 0:01:44.8]} 18... h6 {[%clk 0:01:17.1]} 19. Rfe1 {[%clk
0:01:43.6]} 19... f6 {[%clk 0:01:10.8]} 20. Rc7 {[%clk 0:01:43]} 20... Kd8
{[%clk 0:01:11.2]} 21. Rec1 {[%clk 0:01:37.8]} 21... a5 {[%clk 0:00:59.1]} 22.
Be6 {[%clk 0:01:21.6]} 22... Nb6 {[%clk 0:00:34.8]} 23. Nc5 {[%clk 0:01:19.1]}
23... Re8 {[%clk 0:00:24.7]} 24. Bxc8 {[%clk 0:01:18.6]} 1-0

[Event "*** Titled Tuesday Blitz"]
[Site "Chess.com"]
[Date "2020.12.01"]
[Round "1"]
[White "ChessWarrior7197"]
[Black "lolo9292"]
[Result "1-0"]
[WhiteElo "2984"]
[BlackElo "2451"]
[TimeControl "180+1"]
[EndTime "10:05:30 PST"]
[Termination "ChessWarrior7197 won by resignation"]

1. c4 {[%clk 0:03:00.2]} 1... g6 {[%clk 0:02:59.5]} 2. Nc3 {[%clk 0:02:59.6]}
2... Bg7 {[%clk 0:03:00.4]} 3. Nf3 {[%clk 0:02:57.7]} 3... d6 {[%clk 0:03:01.3]}
4. d4 {[%clk 0:02:57.8]} 4... Nf6 {[%clk 0:03:01.8]} 5. g3 {[%clk 0:02:57.9]}
5... O-O {[%clk 0:03:02.7]} 6. Bg2 {[%clk 0:02:58.8]} 6... Bf5 {[%clk
0:03:02.6]} 7. Nh4 {[%clk 0:02:52]} 7... Bc8 {[%clk 0:03:01.7]} 8. O-O {[%clk
0:02:52.5]} 8... c6 {[%clk 0:02:59.6]} 9. Nf3 {[%clk 0:02:51.1]} 9... Bf5 {[%clk
0:02:58.5]} 10. Ng5 {[%clk 0:02:51.5]} 10... Qa5 {[%clk 0:02:55.2]} 11. e4
{[%clk 0:02:50.2]} 11... Bg4 {[%clk 0:02:55.1]} 12. f3 {[%clk 0:02:50.1]} 12...
Bc8 {[%clk 0:02:53.4]} 13. Nh3 {[%clk 0:02:49.5]} 13... e5 {[%clk 0:02:52]} 14.
d5 {[%clk 0:02:49.6]} 14... cxd5 {[%clk 0:02:46.7]} 15. cxd5 {[%clk 0:02:50.5]}
15... b5 {[%clk 0:02:46.3]} 16. Nf2 {[%clk 0:02:48.2]} 16... b4 {[%clk
0:02:40.7]} 17. Ne2 {[%clk 0:02:48.3]} 17... Ba6 {[%clk 0:02:40.4]} 18. Be3
{[%clk 0:02:48.7]} 18... Nbd7 {[%clk 0:02:39.9]} 19. Qd2 {[%clk 0:02:49.2]}
19... Qb5 {[%clk 0:02:37.5]} 20. Nc1 {[%clk 0:02:45.9]} 20... Nc5 {[%clk
0:02:32.9]} 21. Nb3 {[%clk 0:02:42.6]} 21... Nfd7 {[%clk 0:02:30.2]} 22. Rfc1
{[%clk 0:02:41.6]} 22... Rac8 {[%clk 0:02:21.1]} 23. Bf1 {[%clk 0:02:41.6]}
23... Qb6 {[%clk 0:02:18.1]} 24. Nxc5 {[%clk 0:02:39.9]} 24... dxc5 {[%clk
0:02:13.6]} 25. Bxa6 {[%clk 0:02:37.8]} 25... Qxa6 {[%clk 0:02:14.5]} 26. b3
{[%clk 0:02:35.5]} 26... f5 {[%clk 0:02:14.1]} 27. Rc4 {[%clk 0:02:35.1]} 27...
f4 {[%clk 0:02:11.7]} 28. Rac1 {[%clk 0:02:24.9]} 28... fxe3 {[%clk 0:02:09.9]}
29. Qxe3 {[%clk 0:02:25.8]} 29... Qd6 {[%clk 0:02:06.9]} 30. Nd3 {[%clk
0:02:25.4]} 30... Rf7 {[%clk 0:02:05.1]} 31. Kg2 {[%clk 0:02:14.7]} 31... Rcf8
{[%clk 0:02:03.3]} 32. Rf1 {[%clk 0:02:14.9]} 32... g5 {[%clk 0:01:57.6]} 33.
Qxg5 {[%clk 0:02:11.5]} 33... Kh8 {[%clk 0:01:57.8]} 34. Qe3 {[%clk 0:02:10.6]}
34... Bh6 {[%clk 0:01:56.8]} 35. Qe2 {[%clk 0:02:10.5]} 35... Rg8 {[%clk
0:01:52.4]} 36. Kh1 {[%clk 0:02:11]} 36... a5 {[%clk 0:01:49.9]} 37. Rc2 {[%clk
0:02:08.9]} 37... Rgf8 {[%clk 0:01:47.7]} 38. Nb2 {[%clk 0:02:07.7]} 38... Qg6
{[%clk 0:01:46.2]} 39. Nc4 {[%clk 0:02:05.2]} 39... Qh5 {[%clk 0:01:42.2]} 40.
Kg2 {[%clk 0:02:00]} 40... Nf6 {[%clk 0:01:40.7]} 41. Nd6 {[%clk 0:01:57.2]}
41... Rg7 {[%clk 0:01:38.5]} 42. Nf5 {[%clk 0:01:56.3]} 42... Nxd5 {[%clk
0:01:37.8]} 43. Nxg7 {[%clk 0:01:52.9]} 43... Nf4+ {[%clk 0:01:33.3]} 44. gxf4
{[%clk 0:01:50.7]} 44... Bxg7 {[%clk 0:01:34.2]} 45. f5 {[%clk 0:01:49.7]} 45...
Bh6 {[%clk 0:01:34.4]} 46. Kh1 {[%clk 0:01:49]} 46... Bf4 {[%clk 0:01:33.1]} 47.
Rg1 {[%clk 0:01:48.5]} 47... Rd8 {[%clk 0:01:32.5]} 48. Qg2 {[%clk 0:01:46.8]}
48... Qh6 {[%clk 0:01:32]} 49. Rxc5 {[%clk 0:01:43]} 49... Qf6 {[%clk
0:01:28.5]} 50. Rc6 {[%clk 0:01:41.9]} 50... Qf8 {[%clk 0:01:28.5]} 51. f6
{[%clk 0:01:41.1]} 51... Rd2 {[%clk 0:01:27.4]} 52. Qg7+ {[%clk 0:01:36.5]}
52... Qxg7 {[%clk 0:01:27.5]} 53. Rc8+ {[%clk 0:01:37.1]} 53... Qf8 {[%clk
0:01:26.3]} 1-0

[Event "*** Titled Tuesday Blitz"]
[Site "Chess.com"]
[Date "2020.12.01"]
[Round "1"]
[White "Vanina1989"]
[Black "A-S-00"]
[Result "1-0"]
[WhiteElo "2634"]
[BlackElo "2310"]
[TimeControl "180+1"]
[EndTime "10:05:30 PST"]
[Termination "Vanina1989 won by resignation"]

1. d4 {[%clk 0:03:00.9]} 1... d5 {[%clk 0:02:57.1]} 2. c4 {[%clk 0:03:00.8]}
2... c6 {[%clk 0:02:57.1]} 3. Nf3 {[%clk 0:03:01]} 3... Nf6 {[%clk 0:02:57.4]}
4. Nc3 {[%clk 0:02:59.9]} 4... dxc4 {[%clk 0:02:57.3]} 5. e3 {[%clk 0:02:59.2]}
5... Bf5 {[%clk 0:02:55.2]} 6. Bxc4 {[%clk 0:02:59.2]} 6... e6 {[%clk
0:02:55.5]} 7. O-O {[%clk 0:02:59.5]} 7... Bb4 {[%clk 0:02:54.2]} 8. Qe2 {[%clk
0:02:59.5]} 8... O-O {[%clk 0:02:52.3]} 9. h3 {[%clk 0:02:59.4]} 9... Bg6 {[%clk
0:02:51.7]} 10. Rd1 {[%clk 0:02:59.3]} 10... Nbd7 {[%clk 0:02:51.4]} 11. Ne5
{[%clk 0:02:56.8]} 11... Nb6 {[%clk 0:02:46.7]} 12. Nxg6 {[%clk 0:02:55.5]}
12... hxg6 {[%clk 0:02:46.1]} 13. Bb3 {[%clk 0:02:55.9]} 13... Qe7 {[%clk
0:02:41.5]} 14. e4 {[%clk 0:02:55.5]} 14... e5 {[%clk 0:02:28.4]} 15. dxe5
{[%clk 0:02:55.4]} 15... Qxe5 {[%clk 0:02:27.5]} 16. f4 {[%clk 0:02:55.4]} 16...
Qe7 {[%clk 0:02:24.4]} 17. e5 {[%clk 0:02:54.9]} 17... Nfd5 {[%clk 0:01:44.9]}
18. Ne4 {[%clk 0:02:54.4]} 18... Qc7 {[%clk 0:01:28.5]} 19. a3 {[%clk
0:02:44.8]} 19... Be7 {[%clk 0:01:27.9]} 20. Bd2 {[%clk 0:02:45]} 20... a5
{[%clk 0:01:27.4]} 21. Rac1 {[%clk 0:02:44.5]} 21... a4 {[%clk 0:01:26.5]} 22.
Ba2 {[%clk 0:02:44.8]} 22... Rad8 {[%clk 0:01:18]} 23. Qf3 {[%clk 0:02:40.6]}
23... Qb8 {[%clk 0:01:14.6]} 24. Kh1 {[%clk 0:02:38.4]} 24... Nc7 {[%clk
0:00:55.6]} 25. Ba5 {[%clk 0:02:37.3]} 25... Qa7 {[%clk 0:00:54.9]} 26. Bxb6
{[%clk 0:02:35.1]} 26... Qxb6 {[%clk 0:00:55.1]} 27. f5 {[%clk 0:02:33.5]} 27...
gxf5 {[%clk 0:00:50.8]} 28. Qxf5 {[%clk 0:02:33.1]} 28... Nd5 {[%clk 0:00:51]}
29. e6 {[%clk 0:02:15.3]} 29... f6 {[%clk 0:00:38.8]} 30. Bb1 {[%clk 0:02:03.3]}
30... Qxb2 {[%clk 0:00:23.2]} 31. Nd2 {[%clk 0:01:47.5]} 1-0

[Event "*** Titled Tuesday Blitz"]
[Site "Chess.com"]
[Date "2020.12.01"]
[Round "1"]
[White "Matols"]
[Black "Mr_Sinigami"]
[Result "0-1"]
[WhiteElo "2214"]
[BlackElo "2541"]
[TimeControl "180+1"]
[EndTime "10:05:31 PST"]
[Termination "Mr_Sinigami won by resignation"]

1. d4 {[%clk 0:03:00.9]} 1... Nf6 {[%clk 0:02:59.3]} 2. c4 {[%clk 0:03:00.2]}
2... g6 {[%clk 0:02:59.4]} 3. Nf3 {[%clk 0:02:58.9]} 3... Bg7 {[%clk 0:02:59.8]}
4. g3 {[%clk 0:02:59.2]} 4... O-O {[%clk 0:03:00.2]} 5. Bg2 {[%clk 0:02:59.5]}
5... d6 {[%clk 0:03:00.7]} 6. O-O {[%clk 0:02:59.6]} 6... Nbd7 {[%clk
0:03:01.3]} 7. Nc3 {[%clk 0:02:58.9]} 7... e5 {[%clk 0:03:01.7]} 8. e4 {[%clk
0:02:54.7]} 8... exd4 {[%clk 0:03:01.6]} 9. Nxd4 {[%clk 0:02:54.7]} 9... Re8
{[%clk 0:03:02.5]} 10. h3 {[%clk 0:02:52.5]} 10... c6 {[%clk 0:03:02]} 11. Re1
{[%clk 0:02:47.6]} 11... a5 {[%clk 0:03:01.3]} 12. Qc2 {[%clk 0:02:41.7]} 12...
Nc5 {[%clk 0:03:00.3]} 13. Be3 {[%clk 0:02:32.8]} 13... Nfd7 {[%clk 0:02:59.3]}
14. Rad1 {[%clk 0:02:30.2]} 14... a4 {[%clk 0:02:59.5]} 15. b4 {[%clk
0:02:24.6]} 15... axb3 {[%clk 0:02:57.1]} 16. axb3 {[%clk 0:02:24.7]} 16... Qb6
{[%clk 0:02:54.9]} 17. Rb1 {[%clk 0:02:07.1]} 17... Qb4 {[%clk 0:02:50.4]} 18.
Qd2 {[%clk 0:01:43.1]} 18... Ra3 {[%clk 0:02:25.2]} 19. Nde2 {[%clk 0:00:50.9]}
19... Nxb3 {[%clk 0:02:12.2]} 20. Qc2 {[%clk 0:00:40.5]} 20... Qxc4 {[%clk
0:02:07.2]} 21. Bf1 {[%clk 0:00:36.2]} 21... Nbc5 {[%clk 0:02:02.6]} 22. Rec1
{[%clk 0:00:25.2]} 22... Qd3 {[%clk 0:01:52.4]} 23. Qb2 {[%clk 0:00:20.5]} 23...
Rb3 {[%clk 0:01:51.7]} 24. Qa2 {[%clk 0:00:19.7]} 24... Rxb1 {[%clk 0:01:51.4]}
25. Nxb1 {[%clk 0:00:18.8]} 25... Qxe4 {[%clk 0:01:48.3]} 26. Nf4 {[%clk
0:00:18.2]} 26... Ne5 {[%clk 0:01:37.5]} 27. Bg2 {[%clk 0:00:17.6]} 27... Qa4
{[%clk 0:01:34.3]} 28. Qb2 {[%clk 0:00:16.7]} 28... Nf3+ {[%clk 0:01:32.1]} 0-1